[Event "44th Chess Olympiad Women 2022"]
[Site "Chennai"]
[Date "2022.08.06"]
[Round "8.9"]
[White "Vo, Thi Kim Phung"]
[Black "Paehtz, Elisabeth"]
[Result "1/2-1/2"]
[WhiteElo "2333"]
[BlackElo "2484"]
[Annotator "TA"]
[PlyCount "159"]
[EventDate "2022.??.??"]
[TimeControl "60"]

{[%evp 14,159,1,0,2,-17,-7,-5,0,-8,-15,-12,-14,-3,0,0,0,0,0,13,7,0,0,0,37,22,
40,7,6,-6,-5,-8,-7,-8,-8,-15,-15,-15,-11,-11,-11,-12,-12,-10,-8,-8,-8,-10,-10,
-10,-8,-20,-19,-20,-20,-20,-20,-20,-20,-20,-20,-20,-20,-20,-20,-74,-54,-54,-54,
-54,-54,-54,-53,-53,-53,-54,-54,-54,0,-54,-54,-54,-54,-54,-53,-53,-53,-53,-53,
-53,-53,-54,-54,-54,-54,-54,-54,-54,-54,-54,-54,-54,-54,-54,-54,-54,-42,-54,
-54,-54,-42,-42,-42,-42,-39,-40,-39,-40,-25,-40,-25,-25,-25,-40,-25,-25,-25,
-47,-40,-40,-40,-47,-40,-40,-40,-40,-40,-47,-40,-40,-40,-47,-47,-47,-47,-47,
-47,-47]} 1. d4 {[%emt 0:00:04]} Nf6 {[%emt 0:00:04]} 2. c4 {[%emt 0:00:12]} e6
{[%emt 0:00:03]} 3. Nc3 {[%emt 0:00:18]} Bb4 {[%emt 0:00:04]} 4. Qc2 {[%emt 0:
00:00]} O-O {[%emt 0:00:19]} 5. Nf3 {[%emt 0:00:15]} c5 {[%emt 0:00:04]} 6.
dxc5 {[%emt 0:01:11]} Na6 {[%emt 0:00:05][%cal Yb8a6,Ya6c5,Yc5e4]} 7. Bd2 {
[%emt 0:00:43][%cal Yc1d2,Yd2c3,Yc3d4]} Nxc5 {[%emt 0:00:33]} 8. e3 {[%emt 0:
01:12] was the old line (8.a3).} b6 {[%emt 0:01:00] E39: Nimzo-Indian:
Classical: 4...c5 5 dxc5 0-0.} 9. a3 {[%emt 0:02:08]} Bxc3 {[%emt 0:00:05]} 10.
Bxc3 {[%emt 0:00:09]} Nce4 {[%emt 0:02:14] Prevents Ng5. The position is equal.
} 11. Bd4 {[%emt 0:01:39]} Bb7 {[%emt 0:06:30]} 12. Bd3 {[%emt 0:04:40] [#]}
Rc8 $146 {[%emt 0:12:03]} ({Predecessor:} 12... d5 13. cxd5 Rc8 14. Qe2 Qxd5
15. Rd1 Qa5+ 16. Kf1 Rfd8 17. h3 Bd5 18. Kg1 Bb3 {½-½ (25) Dordzhieva,D 
(2238)-Vangsgaard,F (1842) Batumi 2014}) 13. O-O {[%emt 0:00:55]} d6 {[%emt 0:
00:40] And now ...e5 would win.} 14. b4 {[%emt 0:02:38]} e5 {[%emt 0:06:09]}
15. Bb2 {[%emt 0:00:17]} b5 {[%emt 0:07:43]} 16. Qe2 {[%emt 0:00:00]} bxc4 {
[%emt 0:01:17]} 17. Bxc4 {[%emt 0:00:06]} Qb6 {[%emt 0:09:38]} 18. Rac1 {
[%emt 0:04:33]} Rc7 {[%emt 0:04:50]} 19. Nd2 {[%emt 0:06:26]} Rfc8 {[%emt 0:05:
58] Threatens to win with ...Nxd2.} 20. Nxe4 {[%emt 0:00:38]} (20. Nb3 $5 {
[%cal Rb3a5]}) 20... Nxe4 {[%emt 0:00:21]} 21. Qd3 {[%emt 0:09:13] [#]} Rxc4 $1
{[%emt 0:23:17]} 22. Rxc4 {[%emt 0:00:17]} Rxc4 {[%emt 0:00:01]} 23. Qxc4 {
[%emt 0:00:13] Black must now prevent Rc1.} Nd2 $1 {[%emt 0:00:02][%csl Yc4,
Yf1] Deflection, Double Attack} 24. Qc2 {[%emt 0:12:04]} Nxf1 {[%emt 0:00:37]}
25. Kxf1 $11 {[%emt 0:00:18] Endgame KQB-KQB} Qb5+ {[%emt 0:01:19]} 26. Kg1 {
[%emt 0:00:15]} Qc6 {[%emt 0:02:56] Prevents Qc7.} 27. Qxc6 {[%emt 0:00:10]}
Bxc6 {[%emt 0:00:02] KB-KB} 28. f3 {[%emt 0:00:55]} Kf8 {[%emt 0:00:08]} 29.
Kf2 {[%emt 0:00:24]} Ke7 {[%emt 0:00:04]} 30. e4 {[%emt 0:00:00]} Ke6 {[%emt 0:
00:06]} 31. Ke3 {[%emt 0:00:26]} f5 {[%emt 0:00:43]} 32. g3 {[%emt 0:03:01]} g5
{[%emt 0:02:18]} 33. g4 {[%emt 0:08:25]} f4+ {[%emt 0:00:00]} 34. Ke2 {[%emt 0:
01:42]} Bb5+ {[%emt 0:00:39]} 35. Kf2 {[%emt 0:01:26]} Kd7 {[%emt 0:00:57]} 36.
Bc3 {[%emt 0:00:05]} Kc6 {[%emt 0:00:33]} 37. Be1 {[%emt 0:01:12]} a6 {[%emt 0:
03:23]} 38. h3 {[%emt 0:00:50]} Ba4 {[%emt 0:01:47]} 39. b5+ {[%emt 0:02:15]} (
39. Kg2 $11 {keeps the balance.}) 39... Bxb5 {[%emt 0:03:16]} 40. Ba5 {[%emt 0:
00:34]} Kd7 {[%emt 0:00:17] Prevents Bd8.} 41. Bc3 {[%emt 0:30:25]} Ke6 {
[%emt 0:30:07]} 42. Ba5 {[%emt 0:00:08]} h6 {[%emt 0:00:00]} 43. Bd8 {[%emt 0:
00:15]} Bd3 {[%emt 0:00:45]} 44. Ba5 {[%emt 0:00:17]} Bc4 {[%emt 0:00:30]} 45.
Bb4 {[%emt 0:00:32]} Bd3 {[%emt 0:01:25]} 46. Ba5 $1 {[%emt 0:00:21]} Bc2 {
[%emt 0:01:57]} 47. Bb4 {[%emt 0:00:12]} Ba4 {[%emt 0:00:00]} 48. Ba5 {[%emt 0:
00:07]} Be8 {[%emt 0:00:04]} 49. Bd8 {[%emt 0:00:11]} Kf7 {[%emt 0:01:34]} 50.
h4 {[%emt 0:02:28]} gxh4 {[%emt 0:00:08]} 51. Bxh4 {[%emt 0:00:04]} Ke6 {
[%emt 0:00:15]} 52. Bd8 {[%emt 0:00:14]} h5 {[%emt 0:00:00]} 53. gxh5 {[%emt 0:
00:13]} Bxh5 {[%emt 0:00:04]} 54. Ba5 {[%emt 0:00:25]} d5 {[%emt 0:01:33]} 55.
exd5+ {[%emt 0:00:11]} Kxd5 {[%emt 0:00:04]} 56. Bc7 {[%emt 0:00:19]} Be8 {
[%emt 0:01:07]} 57. Bb8 {[%emt 0:00:14]} Ba4 {[%emt 0:00:00]} 58. Bc7 {[%emt 0:
00:08]} Bd1 {[%emt 0:00:34]} 59. Ba5 {[%emt 0:00:45]} e4 {[%emt 0:00:58]} 60.
fxe4+ {[%emt 0:00:07]} Kxe4 {[%emt 0:00:03]} 61. Bb4 {[%emt 0:00:15]} f3 {
[%emt 0:00:11]} 62. Bf8 {[%emt 0:00:09]} Be2 {[%emt 0:00:00]} 63. Be7 {[%emt 0:
00:07]} Kd5 {[%emt 0:00:16]} 64. Bf8 {[%emt 0:00:07]} Kc4 {[%emt 0:00:19]} 65.
Be7 {[%emt 0:00:06]} a5 {[%emt 0:00:07]} 66. Bf8 {[%emt 0:00:00]} Kb3 {[%emt 0:
00:13]} 67. Be7 {[%emt 0:00:07]} a4 {[%emt 0:01:51]} 68. Bf8 {[%emt 0:00:18]}
Kc4 {[%emt 0:00:47]} 69. Be7 {[%emt 0:00:10]} Kd5 {[%emt 0:00:31]} 70. Bf8 {
[%emt 0:00:10]} Ke6 {[%emt 0:00:08] Black is slightly better.} 71. Bb4 {
[%emt 0:00:06]} Kf5 {[%emt 0:00:08]} 72. Bf8 {[%emt 0:00:12]} Kg6 {[%emt 0:00:
37]} 73. Bb4 {[%emt 0:00:27]} Kh5 {[%emt 0:00:45]} 74. Bf8 {[%emt 0:00:07]} Kg4
{[%emt 0:00:21]} 75. Bb4 {[%emt 0:00:09]} Bd1 {[%emt 0:00:00]} 76. Bc5 {
[%emt 0:01:05]} Kf5 {[%emt 0:00:31]} 77. Bb4 {[%emt 0:01:56]} Ke4 {[%emt 0:00:
17]} 78. Bf8 {[%emt 0:00:10]} Kd3 {[%emt 0:00:08]} 79. Be7 {[%emt 0:00:06]} Be2
{[%emt 0:00:04]} 80. Bf8 {[%emt 0:00:04] Weighted Error Value: White=0.04 
(flawless) /Black=0.03 (flawless)} 1/2-1/2

[Event "44th Chess Olympiad Women 2022"]
[Site "Chennai"]
[Date "2022.08.06"]
[Round "8.10"]
[White "Cassi, Elisa"]
[Black "Calzetta Ruiz, Monica"]
[Result "0-1"]
[WhiteElo "1922"]
[BlackElo "2230"]
[Annotator "NA RC"]
[PlyCount "64"]
[EventDate "2022.??.??"]
[TimeControl "60"]

1. e4 {[%emt 0:00:01]} c5 {[%emt 0:00:08]} 2. Nf3 {[%emt 0:00:05]} e6 {[%emt 0:
00:00]} 3. d4 {[%emt 0:00:10]} cxd4 {[%emt 0:00:04]} 4. Nxd4 {[%emt 0:00:00]}
Nf6 {[%emt 0:00:14]} 5. Nc3 {[%emt 0:00:05]} Nc6 {[%emt 0:00:06]} 6. Ndb5 {
[%emt 0:01:16]} Bb4 {[%emt 0:00:12]} 7. a3 {[%emt 0:01:05]} Bxc3+ {[%emt 0:00:
00]} 8. Nxc3 {[%emt 0:00:08]} d5 {[%emt 0:00:17]} 9. exd5 {[%emt 0:09:04]} exd5
{[%emt 0:00:20]} 10. Bb5 {[%emt 0:01:32]} d4 {[%emt 0:09:29]} 11. Qe2+ {
[%emt 0:10:22]} Be6 {[%emt 0:03:55]} 12. Ne4 {[%emt 0:04:29]} Nxe4 {[%emt 0:00:
00]} 13. Bxc6+ {[%emt 0:00:14]} bxc6 {[%emt 0:00:09]} 14. Qxe4 {[%emt 0:00:02]}
O-O {[%emt 0:01:42]} 15. O-O {[%emt 0:03:58]} Re8 {[%emt 0:28:06]} 16. Rd1 {
[%emt 0:22:12]} c5 {[%emt 0:00:37]} 17. Qd3 {[%emt 0:07:25]} Qf6 {[%emt 0:00:
00]} 18. f3 {[%emt 0:18:43]} Bf5 {[%emt 0:08:58]} 19. Qc4 {[%emt 0:00:28]} Qg6
{[%emt 0:01:04]} 20. Bf4 {[%emt 0:06:38]} Bxc2 {[%emt 0:01:53]} 21. Rd2 {
[%emt 0:03:06]} d3 {[%emt 0:02:32]} 22. Qxc5 {[%emt 0:00:08]} Qf6 {[%emt 0:00:
00]} 23. Be3 {[%emt 0:00:25]} Re5 {[%emt 0:09:51]} 24. Qd4 {[%emt 0:00:05]}
Rae8 {[%emt 0:00:11]} 25. Re1 {[%emt 0:00:34]} a5 {[%emt 0:03:55]} 26. Kf2 {
[%emt 0:04:18]} h6 {[%emt 0:02:00]} 27. b4 {[%emt 0:02:17]} axb4 {[%emt 0:00:
00]} 28. axb4 {[%emt 0:00:08]} Qe7 {[%emt 0:02:44]} 29. Rxd3 {[%emt 0:01:55]}
Bxd3 {[%emt 0:00:06]} 30. Qxd3 {[%emt 0:00:07]} Qh4+ {[%emt 0:00:42]} 31. Kf1 {
[%emt 0:00:49]} Qxe1+ {[%emt 0:00:21]} 32. Kxe1 {[%emt 0:00:20]} Rxe3+ {
[%emt 0:00:06]} 0-1

[Event "44th Chess Olympiad Women 2022"]
[Site "Chennai"]
[Date "2022.08.06"]
[Round "8.10"]
[White "Garcia Martin, Marta"]
[Black "Raccanello, Marianna"]
[Result "0-1"]
[WhiteElo "2305"]
[BlackElo "2067"]
[Annotator "RC"]
[PlyCount "76"]
[EventDate "2022.??.??"]
[TimeControl "60"]

1. d4 {[%emt 0:00:05]} Nf6 {[%emt 0:00:14]} 2. c4 {[%emt 0:00:06]} e6 {[%emt 0:
00:00]} 3. Nf3 {[%emt 0:00:08]} b6 {[%emt 0:00:13]} 4. g3 {[%emt 0:00:06]} Ba6
{[%emt 0:00:11]} 5. b3 {[%emt 0:00:27]} Bb4+ {[%emt 0:00:08]} 6. Bd2 {[%emt 0:
00:00]} Be7 {[%emt 0:00:08]} 7. Nc3 {[%emt 0:01:00]} d5 {[%emt 0:02:37]} 8.
cxd5 {[%emt 0:00:58]} exd5 {[%emt 0:00:17]} 9. Bg2 {[%emt 0:08:39]} O-O {
[%emt 0:01:37]} 10. O-O {[%emt 0:00:27]} Re8 {[%emt 0:03:01]} 11. Re1 {[%emt 0:
00:00]} Bb7 {[%emt 0:03:50]} 12. Qc2 {[%emt 0:15:40]} c5 {[%emt 0:07:51]} 13.
Rad1 {[%emt 0:02:41]} Nc6 {[%emt 0:11:01]} 14. Bf4 {[%emt 0:22:30]} Rc8 {
[%emt 0:16:03]} 15. dxc5 {[%emt 0:04:45]} bxc5 {[%emt 0:03:35]} 16. Qb1 {
[%emt 0:15:18]} Nd4 {[%emt 0:28:31]} 17. e3 {[%emt 0:02:14]} Ne6 {[%emt 0:00:
00]} 18. Be5 {[%emt 0:01:45]} Ng4 {[%emt 0:03:06]} 19. Qf5 {[%emt 0:01:03]} Nh6
{[%emt 0:02:02]} 20. Qh5 {[%emt 0:03:31]} Bf8 {[%emt 0:04:14]} 21. Bf4 {
[%emt 0:00:40]} g6 {[%emt 0:01:22]} 22. Qh3 {[%emt 0:00:23]} Nxf4 {[%emt 0:00:
00]} 23. gxf4 {[%emt 0:00:18]} Rc7 {[%emt 0:05:37]} 24. Ne5 {[%emt 0:00:45]}
Bc8 {[%emt 0:01:40]} 25. Qf3 {[%emt 0:00:07]} d4 {[%emt 0:01:02]} 26. exd4 {
[%emt 0:00:57]} cxd4 {[%emt 0:00:13]} 27. Nb5 {[%emt 0:00:20]} Rc5 {[%emt 0:00:
00]} 28. Nxd4 {[%emt 0:00:24]} Qa5 {[%emt 0:00:40]} 29. b4 {[%emt 0:00:47]}
Qxb4 {[%emt 0:00:29]} 30. Nd3 {[%emt 0:00:25]} Rxe1+ {[%emt 0:00:05]} 31. Rxe1
{[%emt 0:00:04]} Qxd4 {[%emt 0:00:15]} 32. Nxc5 {[%emt 0:00:04]} Qxc5 {[%emt 0:
00:00]} 33. Qe3 {[%emt 0:01:27]} Be6 {[%emt 0:01:04]} 34. Rc1 {[%emt 0:00:21]}
Qa5 {[%emt 0:00:53]} 35. Qd4 {[%emt 0:00:40]} Nf5 {[%emt 0:00:26]} 36. Qc3 {
[%emt 0:00:22]} Qxc3 {[%emt 0:00:32]} 37. Rxc3 {[%emt 0:00:03]} Bxa2 {[%emt 0:
00:00]} 38. Rc7 {[%emt 0:00:57]} a5 {[%emt 0:00:10]} 0-1

[Event "44th Chess Olympiad Women 2022"]
[Site "Chennai"]
[Date "2022.08.06"]
[Round "8.10"]
[White "Gueci, Tea"]
[Black "Matnadze, Ana"]
[Result "1/2-1/2"]
[WhiteElo "2254"]
[BlackElo "2406"]
[Annotator "RC"]
[PlyCount "99"]
[EventDate "2022.??.??"]
[TimeControl "60"]

1. e4 {[%emt 0:00:03]} c6 {[%emt 0:00:06]} 2. d4 {[%emt 0:00:03]} d5 {[%emt 0:
00:00]} 3. Nc3 {[%emt 0:00:04]} dxe4 {[%emt 0:00:06]} 4. Nxe4 {[%emt 0:00:04]}
Nf6 {[%emt 0:00:06]} 5. Nxf6+ {[%emt 0:00:17]} exf6 {[%emt 0:00:27]} 6. c3 {
[%emt 0:00:14]} Bd6 {[%emt 0:00:15]} 7. Bd3 {[%emt 0:00:05]} h5 {[%emt 0:05:55]
} 8. Ne2 {[%emt 0:01:46]} Qc7 {[%emt 0:01:12]} 9. h3 {[%emt 0:06:51]} Be6 {
[%emt 0:02:40]} 10. c4 {[%emt 0:03:26]} Bb4+ {[%emt 0:01:39]} 11. Bd2 {[%emt 0:
00:00]} a5 {[%emt 0:08:05]} 12. O-O {[%emt 0:02:12]} Na6 {[%emt 0:04:09]} 13.
a3 {[%emt 0:08:32]} Bxd2 {[%emt 0:06:40]} 14. Qxd2 {[%emt 0:00:05]} Rd8 {
[%emt 0:00:30]} 15. Nf4 {[%emt 0:06:12]} Kf8 {[%emt 0:02:22]} 16. Qe3 {[%emt 0:
00:00]} Bc8 {[%emt 0:07:46]} 17. Rad1 {[%emt 0:05:40]} Qe7 {[%emt 0:03:42]} 18.
Qxe7+ {[%emt 0:13:07]} Kxe7 {[%emt 0:00:03]} 19. Rfe1+ {[%emt 0:00:06]} Kf8 {
[%emt 0:00:27]} 20. Be2 {[%emt 0:02:03]} g6 {[%emt 0:01:00]} 21. d5 {[%emt 0:
00:00]} Kg7 {[%emt 0:01:36]} 22. dxc6 {[%emt 0:04:38]} bxc6 {[%emt 0:00:24]}
23. Bf3 {[%emt 0:00:57]} c5 {[%emt 0:01:57]} 24. Bd5 {[%emt 0:04:33]} Rhe8 {
[%emt 0:02:58]} 25. Rxe8 {[%emt 0:04:44]} Rxe8 {[%emt 0:00:03]} 26. Bc6 {
[%emt 0:00:07]} Re7 {[%emt 0:00:35]} 27. Bb5 {[%emt 0:10:48]} Nc7 {[%emt 0:00:
00]} 28. Nd5 {[%emt 0:00:00]} Nxd5 {[%emt 0:00:12]} 29. cxd5 {[%emt 0:00:00]}
Rb7 {[%emt 0:00:11]} 30. a4 {[%emt 0:03:32]} Bd7 {[%emt 0:01:40]} 31. d6 {
[%emt 0:01:12]} f5 {[%emt 0:03:50]} 32. Bxd7 {[%emt 0:04:04]} Rxd7 {[%emt 0:00:
00]} 33. b3 {[%emt 0:00:17]} Kf6 {[%emt 0:00:51]} 34. Rd5 {[%emt 0:00:14]} Ke6
{[%emt 0:01:03]} 35. Rxc5 {[%emt 0:00:17]} Rb7 {[%emt 0:01:45]} 36. Rxa5 {
[%emt 0:01:28]} Rxb3 {[%emt 0:00:09]} 37. Ra7 {[%emt 0:00:46]} Rb1+ {[%emt 0:
00:00]} 38. Kh2 {[%emt 0:00:06]} Kxd6 {[%emt 0:01:23]} 39. Rxf7 {[%emt 0:00:54]
} Ke5 {[%emt 0:00:37]} 40. Rg7 {[%emt 0:01:55]} Kf6 {[%emt 0:07:01]} 41. Ra7 {
[%emt 0:30:16]} Rb2 {[%emt 0:31:07]} 42. f4 {[%emt 0:00:00]} h4 {[%emt 0:00:00]
} 43. Rh7 {[%emt 0:00:00]} Ra2 {[%emt 0:00:00]} 44. Rxh4 {[%emt 0:00:00]} Rxa4
{[%emt 0:00:00]} 45. g3 {[%emt 0:00:00]} Ra2+ {[%emt 0:00:00]} 46. Kg1 {
[%emt 0:00:00]} Ra1+ {[%emt 0:00:00]} 47. Kf2 {[%emt 0:00:00]} Ra2+ {[%emt 0:
00:00]} 48. Kf3 {[%emt 0:00:00]} Ra3+ {[%emt 0:00:00]} 49. Kf2 {[%emt 0:00:00]}
Ra2+ {[%emt 0:00:00]} 50. Kf3 {[%emt 0:00:52]} 1/2-1/2

[Event "44th Chess Olympiad Women 2022"]
[Site "Chennai"]
[Date "2022.08.06"]
[Round "8.10"]
[White "Vega Gutierrez, Sabrina"]
[Black "Brunello, Marina"]
[Result "1-0"]
[WhiteElo "2366"]
[BlackElo "2341"]
[Annotator "TA"]
[PlyCount "87"]
[EventDate "2022.??.??"]
[TimeControl "60"]

{[%evp 15,87,0,16,0,0,22,16,1,0,22,11,0,23,11,25,21,20,16,26,0,13,12,18,15,67,
76,68,54,78,56,98,75,81,58,63,55,64,61,77,81,116,60,56,68,76,69,87,93,83,100,
419,414,391,276,271,257,243,268,524,503,442,332,297,255,2027,2042,1130,558,
6156,6156,5845,5795,5103,4886]} 1. e4 {[%emt 0:00:04]} c5 {[%emt 0:00:46]} 2.
Nf3 {[%emt 0:00:09]} d6 {[%emt 0:00:23]} 3. d4 {[%emt 0:00:06]} cxd4 {[%emt 0:
00:00]} 4. Nxd4 {[%emt 0:00:09]} Nf6 {[%emt 0:00:09]} 5. Nc3 {[%emt 0:00:07]}
a6 {[%emt 0:00:12]} 6. Bd3 {[%emt 0:00:12]} e5 {[%emt 0:03:05]} 7. Nde2 {
[%emt 0:00:11]} Be7 {[%emt 0:08:18]} 8. O-O {[%emt 0:00:15]} O-O {[%emt 0:00:
00]} 9. Ng3 {[%emt 0:00:13] B90: Sicilian Najdorf: Unusual White 6th moves, 6
Be3 Ng4 and 6 Be3 e5.} Be6 {[%emt 0:04:45]} 10. Nd5 {[%emt 0:00:24]} Bxd5 {
[%emt 0:02:04]} (10... Nxd5 {is interesting.} 11. exd5 Bxd5 12. Bxh7+ Kxh7 13.
Qxd5 Nc6) 11. exd5 {[%emt 0:00:11] The position is equal.} g6 {[%emt 0:00:02]
Inhibits Nf5.} 12. c4 {[%emt 0:00:21]} Nbd7 {[%emt 0:00:23]} 13. Bh6 {[%emt 0:
00:00]} Re8 {[%emt 0:00:08]} 14. Re1 {[%emt 0:00:14]} a5 {[%emt 0:02:08]} 15.
b3 $36 {[%emt 0:00:43] White is more active.} Nc5 {[%emt 0:03:12] [#]} 16. Bf1
$146 {[%emt 0:00:52]} ({Predecessor:} 16. Bc2 Qc7 17. Qf3 Qd8 18. a3 Ncd7 19.
h3 Rc8 20. Nf5 Bf8 21. Bg5 gxf5 22. Bxf5 {0-1 (49) Skurniak,S (2032)-Kasprzak,
L (1884) Sypniewo 2022}) 16... Qc8 {[%emt 0:14:16]} 17. h3 {[%emt 0:02:35]
Against Ng4} Bf8 {[%emt 0:02:28]} 18. Bg5 {[%emt 0:00:23] A strong pair of
Bishops.} Bg7 {[%emt 0:00:19]} 19. Rc1 {[%emt 0:03:48]} h6 {[%emt 0:07:00]} (
19... b6 $11) 20. Be3 $14 {[%emt 0:02:03]} Nfd7 {[%emt 0:00:00]} 21. Ne2 {
[%emt 0:01:47]} f5 {[%emt 0:01:07]} 22. Nc3 {[%emt 0:01:28]} Qd8 {[%emt 0:07:
29]} 23. a3 {[%emt 0:20:44]} Na6 {[%emt 0:05:34]} 24. Rb1 {[%emt 0:00:00]
White is more active.} Qf6 {[%emt 0:01:50]} 25. b4 {[%emt 0:08:07]} axb4 {
[%emt 0:00:39]} 26. axb4 {[%emt 0:00:09]} Rac8 {[%emt 0:00:03]} 27. Na4 {
[%emt 0:02:41]} e4 {[%emt 0:05:19] [#]} 28. Nb6 {[%emt 0:07:28]} (28. c5 $1 $16
{[%cal Rc5c6]}) 28... Nxb6 {[%emt 0:01:44]} 29. Bxb6 {[%emt 0:00:06][%cal
Yc4c5]} Nb8 {[%emt 0:00:01]} 30. c5 {[%emt 0:01:04]} Nd7 {[%emt 0:00:11]} 31.
Bb5 {[%emt 0:00:52][%cal Yf1b5,Yb5e8,Ye8d7,Yd7e6]} Nxb6 {[%emt 0:00:00]} 32.
Bxe8 {[%emt 0:00:55]} dxc5 $2 {[%emt 0:00:04] This costs Black the game.} (
32... Rxe8 $16 {is more resistant.} 33. cxb6 Qd8) 33. bxc5 $18 {[%emt 0:01:50]}
Nc4 {[%emt 0:01:22]} 34. Bd7 {[%emt 0:15:43]} Rxc5 {[%emt 0:01:23]} 35. Be6+ {
[%emt 0:00:31]} Kh7 {[%emt 0:00:43]} 36. Rxb7 {[%emt 0:00:15] aiming for Qa1.}
Nb2 $2 {[%emt 0:02:34]} (36... Ne5 37. Qd2 h5) 37. Qa1 {[%emt 0:01:14]} Rc2 {
[%emt 0:00:37]} 38. Rc1 {[%emt 0:04:50]} Rxc1+ {[%emt 0:00:58]} 39. Qxc1 {
[%emt 0:00:06]} Qd4 $2 {[%emt 0:00:02]} (39... Nd3 40. Qa3 (40. Qc8 h5 $16)
40... Nf4) 40. Qc8 {[%emt 0:15:53][%csl Ge6][%cal Rc8g8] White is clearly
winning.} h5 {[%emt 0:00:22]} 41. Bg8+ {[%emt 0:30:38]} (41. Qg8+ $142 Kh6 {[#]
} 42. Rxg7 $1 (42. Kh1 Nd3 $11) 42... Qxg7 43. d6) 41... Kh8 {[%emt 0:31:37]}
42. Bf7+ {[%emt 0:00:09]} Kh7 {[%emt 0:00:00]} 43. Qe6 {[%emt 0:01:47]} Qf6 {
[%emt 0:06:26] [#]} 44. Rxb2 $1 {[%emt 0:00:00] Weighted Error Value: White=0.
32/Black=0.35} 1-0

[Event "44th Chess Olympiad Women 2022"]
[Site "Chennai"]
[Date "2022.08.06"]
[Round "8.11"]
[White "Bravo Mallco, Kate Azumi"]
[Black "Lanchava, Tea"]
[Result "1/2-1/2"]
[WhiteElo "1958"]
[BlackElo "2257"]
[Annotator "RC"]
[PlyCount "158"]
[EventDate "2022.??.??"]
[TimeControl "60"]

1. e4 {[%emt 0:00:05]} c6 {[%emt 0:00:12]} 2. d4 {[%emt 0:00:21]} g6 {[%emt 0:
00:00]} 3. Nc3 {[%emt 0:00:29]} Bg7 {[%emt 0:00:22]} 4. f4 {[%emt 0:00:36]} d5
{[%emt 0:00:20]} 5. e5 {[%emt 0:00:05]} h5 {[%emt 0:00:31]} 6. Be3 {[%emt 0:00:
00]} Nh6 {[%emt 0:00:38]} 7. Nf3 {[%emt 0:01:04]} Bg4 {[%emt 0:00:18]} 8. h3 {
[%emt 0:00:13]} Nf5 {[%emt 0:01:05]} 9. Bf2 {[%emt 0:00:20]} Bxf3 {[%emt 0:00:
00]} 10. Qxf3 {[%emt 0:00:03]} h4 {[%emt 0:02:21]} 11. Bd3 {[%emt 0:00:29]} e6
{[%emt 0:02:23]} 12. O-O {[%emt 0:00:22]} a5 {[%emt 0:03:35]} 13. Ne2 {[%emt 0:
00:00]} Na6 {[%emt 0:03:14]} 14. c3 {[%emt 0:03:52]} Bf8 {[%emt 0:02:32]} 15.
b3 {[%emt 0:09:29]} Be7 {[%emt 0:07:47]} 16. Rad1 {[%emt 0:04:21]} Kf8 {
[%emt 0:05:37]} 17. c4 {[%emt 0:00:00]} Kg7 {[%emt 0:19:05]} 18. c5 {[%emt 0:
00:00]} b6 {[%emt 0:00:00]} 19. cxb6 {[%emt 0:08:48]} Qxb6 {[%emt 0:00:00]} 20.
Bxa6 {[%emt 0:03:27]} Qxa6 {[%emt 0:03:22]} 21. Nc3 {[%emt 0:00:12]} Qa7 {
[%emt 0:01:19]} 22. Na4 {[%emt 0:02:10]} Rab8 {[%emt 0:01:43]} 23. Qc3 {
[%emt 0:12:50]} Rhc8 {[%emt 0:04:15]} 24. Rc1 {[%emt 0:01:10]} Rb4 {[%emt 0:00:
00]} 25. Rfd1 {[%emt 0:00:15]} f6 {[%emt 0:08:35]} 26. exf6+ {[%emt 0:19:48]}
Bxf6 {[%emt 0:02:31]} 27. Nc5 {[%emt 0:00:32]} Re8 {[%emt 0:06:39]} 28. a3 {
[%emt 0:00:55]} Rbb8 {[%emt 0:00:32]} 29. Re1 {[%emt 0:00:16]} Kf7 {[%emt 0:00:
00]} 30. Rc2 {[%emt 0:10:30]} Re7 {[%emt 0:02:01]} 31. Rce2 {[%emt 0:04:41]}
Rbe8 {[%emt 0:00:06]} 32. Rb1 {[%emt 0:02:02]} Nd6 {[%emt 0:02:14]} 33. Qd3 {
[%emt 0:03:50]} Nb5 {[%emt 0:03:47]} 34. a4 {[%emt 0:00:44]} Nd6 {[%emt 0:00:
00]} 35. b4 {[%emt 0:00:12]} axb4 {[%emt 0:02:21]} 36. Rxb4 {[%emt 0:00:04]}
Qc7 {[%emt 0:02:16]} 37. Rb1 {[%emt 0:05:21]} Nf5 {[%emt 0:04:28]} 38. Qd2 {
[%emt 0:00:01]} Bg7 {[%emt 0:01:55]} 39. a5 {[%emt 0:00:34]} Rb8 {[%emt 0:00:
00]} 40. Rbe1 {[%emt 0:01:02]} Rbe8 {[%emt 0:00:51]} 41. a6 {[%emt 0:30:02]}
Bf6 {[%emt 0:30:41]} 42. Re5 {[%emt 0:00:00]} Qb6 {[%emt 0:00:00]} 43. Ra1 {
[%emt 0:00:00]} Ra7 {[%emt 0:00:00]} 44. Rae1 {[%emt 0:00:00]} Bxe5 {[%emt 0:
00:00]} 45. fxe5 {[%emt 0:00:00]} Qd8 {[%emt 0:00:00]} 46. Rf1 {[%emt 0:00:00]}
Qe7 {[%emt 0:00:00]} 47. Rb1 {[%emt 0:00:00]} Rc8 {[%emt 0:00:00]} 48. Rb6 {
[%emt 0:00:00]} Rac7 {[%emt 0:00:24]} 49. Qb2 {[%emt 0:00:26]} Qg5 {[%emt 0:00:
00]} 50. Rb7 {[%emt 0:04:33]} Ne3 {[%emt 0:00:06]} 51. Bxe3 {[%emt 0:00:28]}
Qxe3+ {[%emt 0:00:05]} 52. Qf2+ {[%emt 0:00:35]} Qxf2+ {[%emt 0:00:15]} 53.
Kxf2 {[%emt 0:00:02]} Re7 {[%emt 0:01:23]} 54. Ke3 {[%emt 0:00:34]} g5 {
[%emt 0:01:03]} 55. Kd3 {[%emt 0:00:25]} Rce8 {[%emt 0:00:52]} 56. Kc3 {
[%emt 0:00:46]} Kg6 {[%emt 0:00:04]} 57. Kb4 {[%emt 0:00:43]} Kf5 {[%emt 0:00:
00]} 58. Ka5 {[%emt 0:00:01]} Kf4 {[%emt 0:01:06]} 59. Rxe7 {[%emt 0:00:58]}
Rxe7 {[%emt 0:00:04]} 60. Kb6 {[%emt 0:00:01]} g4 {[%emt 0:00:55]} 61. a7 {
[%emt 0:00:38]} Re8 {[%emt 0:01:11]} 62. Nxe6+ {[%emt 0:00:30]} Kg3 {[%emt 0:
00:00]} 63. Ng5 {[%emt 0:00:55]} Kxg2 {[%emt 0:00:14]} 64. hxg4 {[%emt 0:00:28]
} Kg3 {[%emt 0:01:14]} 65. Kb7 {[%emt 0:00:25]} Kxg4 {[%emt 0:00:07]} 66. Nh3 {
[%emt 0:00:36]} Kxh3 {[%emt 0:00:40]} 67. a8=Q {[%emt 0:00:16]} Rxa8 {[%emt 0:
00:00]} 68. Kxa8 {[%emt 0:00:02]} Kg3 {[%emt 0:00:44]} 69. e6 {[%emt 0:00:06]}
h3 {[%emt 0:00:03]} 70. e7 {[%emt 0:00:09]} h2 {[%emt 0:00:01]} 71. e8=Q {
[%emt 0:00:08]} h1=Q {[%emt 0:00:04]} 72. Kb7 {[%emt 0:01:31]} Qe4 {[%emt 0:00:
00]} 73. Qe5+ {[%emt 0:01:13]} Qxe5 {[%emt 0:01:47]} 74. dxe5 {[%emt 0:00:03]}
d4 {[%emt 0:00:09]} 75. e6 {[%emt 0:00:07]} d3 {[%emt 0:00:04]} 76. e7 {
[%emt 0:00:04]} d2 {[%emt 0:00:02]} 77. e8=Q {[%emt 0:00:08]} d1=Q {[%emt 0:00:
00]} 78. Qxc6 {[%emt 0:00:06]} Qf3 {[%emt 0:00:03]} 79. Qxf3+ {[%emt 0:00:04]}
Kxf3 {[%emt 0:00:30]} 1/2-1/2